[Event "*** SCC Grand Prix: Titled Tuesday Blitz"]
[Site "Chess.com"]
[Date "2020.09.29"]
[Round "5"]
[White "VladaSviridova"]
[Black "AntonovaNadezhda"]
[Result "1-0"]
[WhiteElo "2258"]
[BlackElo "2055"]
[TimeControl "180+1"]
[EndTime "10:56:35 PDT"]
[Termination "VladaSviridova won by checkmate"]

1. d4 {[%clk 0:03:00.9]} 1... Nf6 {[%clk 0:02:58.1]} 2. c4 {[%clk 0:03:00.8]}
2... g6 {[%clk 0:02:58.5]} 3. Nc3 {[%clk 0:03:00.6]} 3... Bg7 {[%clk 0:02:59.1]}
4. e4 {[%clk 0:03:00.6]} 4... d6 {[%clk 0:02:59.6]} 5. Nf3 {[%clk 0:03:00.1]}
5... O-O {[%clk 0:03:00]} 6. Be2 {[%clk 0:03:00.2]} 6... e5 {[%clk 0:02:57.7]}
7. O-O {[%clk 0:03:00]} 7... Nc6 {[%clk 0:02:57.5]} 8. d5 {[%clk 0:03:00.3]}
8... Ne7 {[%clk 0:02:58]} 9. Ne1 {[%clk 0:03:00.2]} 9... Nd7 {[%clk 0:02:55.9]}
10. Be3 {[%clk 0:03:00]} 10... f5 {[%clk 0:02:55.5]} 11. f3 {[%clk 0:03:00.7]}
11... f4 {[%clk 0:02:55]} 12. Bf2 {[%clk 0:03:01.4]} 12... g5 {[%clk 0:02:54.3]}
13. Nd3 {[%clk 0:03:01.5]} 13... Ng6 {[%clk 0:02:46.6]} 14. c5 {[%clk
0:03:00.2]} 14... Rf7 {[%clk 0:02:46.3]} 15. Rc1 {[%clk 0:02:57.2]} 15... Bf8
{[%clk 0:02:44.6]} 16. Kh1 {[%clk 0:02:57]} 16... Nf6 {[%clk 0:02:44.3]} 17. Rg1
{[%clk 0:02:53.6]} 17... h5 {[%clk 0:02:43.5]} 18. a4 {[%clk 0:02:29.5]} 18...
g4 {[%clk 0:02:42.2]} 19. g3 {[%clk 0:02:29.2]} 19... fxg3 {[%clk 0:02:16.9]}
20. Bxg3 {[%clk 0:02:28.8]} 20... h4 {[%clk 0:02:14.5]} 21. Bf2 {[%clk
0:02:04.8]} 21... g3 {[%clk 0:02:13.8]} 22. hxg3 {[%clk 0:02:03.9]} 22... hxg3
{[%clk 0:02:13.9]} 23. Rxg3 {[%clk 0:02:02.2]} 23... Rh7+ {[%clk 0:02:06.9]} 24.
Kg1 {[%clk 0:01:59.7]} 24... Kf7 {[%clk 0:02:06.9]} 25. Be3 {[%clk 0:01:37.9]}
25... Nh5 {[%clk 0:02:02.2]} 26. Rg2 {[%clk 0:01:28.8]} 26... Qh4 {[%clk
0:01:48.7]} 27. Bg5 {[%clk 0:01:23.9]} 27... Qh3 {[%clk 0:01:44.5]} 28. Nf2
{[%clk 0:01:23.9]} 28... Qd7 {[%clk 0:01:42.5]} 29. c6 {[%clk 0:01:08.9]} 29...
Qe8 {[%clk 0:01:37.2]} 30. cxb7 {[%clk 0:00:48.8]} 30... Bxb7 {[%clk 0:01:36.8]}
31. Bb5 {[%clk 0:00:49]} 31... Qc8 {[%clk 0:01:29.4]} 32. Ng4 {[%clk 0:00:35.8]}
32... Nhf4 {[%clk 0:01:17.7]} 33. Bxf4 {[%clk 0:00:31.5]} 33... Nxf4 {[%clk
0:01:17.2]} 34. Rg3 {[%clk 0:00:20.4]} 34... a6 {[%clk 0:01:10.2]} 35. Bc4
{[%clk 0:00:19.5]} 35... Be7 {[%clk 0:01:07.7]} 36. Bf1 {[%clk 0:00:18.4]} 36...
Qh8 {[%clk 0:01:06.8]} 37. Ne2 {[%clk 0:00:16.3]} 37... Bd8 {[%clk 0:00:47.2]}
38. Nxf4 {[%clk 0:00:15.2]} 38... exf4 {[%clk 0:00:46.5]} 39. Rg2 {[%clk
0:00:15.2]} 39... Rh1+ {[%clk 0:00:43.2]} 40. Kf2 {[%clk 0:00:15.2]} 40... Qh4+
{[%clk 0:00:43.5]} 41. Ke2 {[%clk 0:00:15.5]} 41... a5 {[%clk 0:00:32.5]} 42.
Qe1 {[%clk 0:00:15.6]} 42... Ba6+ {[%clk 0:00:28.4]} 43. Kd2 {[%clk 0:00:12.9]}
43... Qh3 {[%clk 0:00:20.5]} 44. Re2 {[%clk 0:00:11.6]} 44... Qxf1 {[%clk
0:00:19.3]} 45. Qxf1 {[%clk 0:00:11.7]} 45... Rxf1 {[%clk 0:00:19.8]} 46. Rxf1
{[%clk 0:00:12]} 46... Bxe2 {[%clk 0:00:20.4]} 47. Kxe2 {[%clk 0:00:12.4]} 47...
Bf6 {[%clk 0:00:19.2]} 48. Nxf6 {[%clk 0:00:11.5]} 48... Kxf6 {[%clk 0:00:18.8]}
49. Rc1 {[%clk 0:00:11.5]} 49... Ra7 {[%clk 0:00:19.3]} 50. Rc4 {[%clk
0:00:10.8]} 50... Ke5 {[%clk 0:00:19.3]} 51. Kd3 {[%clk 0:00:10.9]} 51... Rb7
{[%clk 0:00:18.1]} 52. Kc3 {[%clk 0:00:11]} 52... Kf6 {[%clk 0:00:18.2]} 53. Rc6
{[%clk 0:00:10.7]} 53... Ke5 {[%clk 0:00:18]} 54. Ra6 {[%clk 0:00:10.1]} 54...
Rb4 {[%clk 0:00:15.1]} 55. b3 {[%clk 0:00:09.3]} 55... Rb7 {[%clk 0:00:14.4]}
56. Rxa5 {[%clk 0:00:09.2]} 56... Rb6 {[%clk 0:00:14.1]} 57. Ra7 {[%clk
0:00:09.1]} 57... c6 {[%clk 0:00:14.2]} 58. Re7+ {[%clk 0:00:08.6]} 58... Kf6
{[%clk 0:00:13]} 59. Re6+ {[%clk 0:00:08.8]} 59... Kf7 {[%clk 0:00:13.7]} 60.
Rxd6 {[%clk 0:00:09]} 60... cxd5 {[%clk 0:00:14.3]} 61. Rxb6 {[%clk 0:00:08.7]}
61... dxe4 {[%clk 0:00:14.7]} 62. fxe4 {[%clk 0:00:08.7]} 62... f3 {[%clk
0:00:14.5]} 63. Kd2 {[%clk 0:00:08.9]} 63... f2 {[%clk 0:00:15]} 64. Ke2 {[%clk
0:00:09.1]} 64... Ke7 {[%clk 0:00:15.9]} 65. Kxf2 {[%clk 0:00:09.1]} 65... Kd7
{[%clk 0:00:16.8]} 66. Ke3 {[%clk 0:00:09.5]} 66... Kc7 {[%clk 0:00:17.7]} 67.
a5 {[%clk 0:00:10]} 67... Kc8 {[%clk 0:00:17.2]} 68. e5 {[%clk 0:00:10.2]} 68...
Kc7 {[%clk 0:00:17.7]} 69. e6 {[%clk 0:00:10.4]} 69... Kd8 {[%clk 0:00:16.8]}
70. Kd4 {[%clk 0:00:10.5]} 70... Ke7 {[%clk 0:00:16.6]} 71. Ke5 {[%clk
0:00:11.1]} 71... Ke8 {[%clk 0:00:16.8]} 72. a6 {[%clk 0:00:11.3]} 72... Ke7
{[%clk 0:00:16.5]} 73. a7 {[%clk 0:00:11.2]} 73... Kd8 {[%clk 0:00:17.4]} 74.
a8=Q+ {[%clk 0:00:11.1]} 74... Kc7 {[%clk 0:00:18.3]} 75. Qb7+ {[%clk
0:00:11.2]} 75... Kd8 {[%clk 0:00:17.8]} 76. Qd7# {[%clk 0:00:11.3]} 1-0

[Event "*** SCC Grand Prix: Titled Tuesday Blitz"]
[Site "Chess.com"]
[Date "2020.09.29"]
[Round "5"]
[White "MashaFromRussia"]
[Black "Gahan-MG"]
[Result "1/2-1/2"]
[WhiteElo "2410"]
[BlackElo "2580"]
[TimeControl "180+1"]
[EndTime "10:56:37 PDT"]
[Termination "Game drawn - insufficient material"]

1. d4 {[%clk 0:03:00.9]} 1... Nf6 {[%clk 0:02:58.4]} 2. c4 {[%clk 0:03:00.9]}
2... g6 {[%clk 0:02:58]} 3. Nf3 {[%clk 0:03:00.5]} 3... Bg7 {[%clk 0:02:57]} 4.
g3 {[%clk 0:03:00.9]} 4... O-O {[%clk 0:02:56.5]} 5. Bg2 {[%clk 0:03:00.4]} 5...
d5 {[%clk 0:02:57.1]} 6. cxd5 {[%clk 0:02:59.8]} 6... Nxd5 {[%clk 0:02:58]} 7.
O-O {[%clk 0:02:59.1]} 7... Nb6 {[%clk 0:02:57.6]} 8. Nc3 {[%clk 0:02:59]} 8...
Nc6 {[%clk 0:02:57.7]} 9. d5 {[%clk 0:02:58.7]} 9... Na5 {[%clk 0:02:57.4]} 10.
e4 {[%clk 0:02:57.5]} 10... c6 {[%clk 0:02:57.1]} 11. Re1 {[%clk 0:02:57.7]}
11... Bg4 {[%clk 0:02:44.1]} 12. h3 {[%clk 0:02:56.5]} 12... Bxf3 {[%clk
0:02:35.9]} 13. Bxf3 {[%clk 0:02:57.4]} 13... cxd5 {[%clk 0:02:33.5]} 14. exd5
{[%clk 0:02:58.3]} 14... Nac4 {[%clk 0:02:32]} 15. Qb3 {[%clk 0:02:52.2]} 15...
Rc8 {[%clk 0:02:24.2]} 16. Bf4 {[%clk 0:02:45.6]} 16... Nxb2 {[%clk 0:02:09.6]}
17. Re3 {[%clk 0:02:37.1]} 17... N2c4 {[%clk 0:02:08]} 18. Rd3 {[%clk
0:02:36.6]} 18... Nd7 {[%clk 0:01:56.1]} 19. Rc1 {[%clk 0:02:17.5]} 19... Qa5
{[%clk 0:01:44.1]} 20. Ne4 {[%clk 0:01:54.6]} 20... Nde5 {[%clk 0:01:38.1]} 21.
Rdc3 {[%clk 0:01:44.3]} 21... Nxf3+ {[%clk 0:01:33.9]} 22. Rxf3 {[%clk
0:01:43.9]} 22... Qxd5 {[%clk 0:01:31.8]} 23. Nd2 {[%clk 0:01:13.9]} 23... b5
{[%clk 0:00:54.8]} 24. a4 {[%clk 0:01:10.1]} 24... a6 {[%clk 0:00:52.8]} 25. Rd3
{[%clk 0:01:10]} 25... Qe6 {[%clk 0:00:51.9]} 26. Nf3 {[%clk 0:01:03.5]} 26...
Nb2 {[%clk 0:00:35.6]} 27. Rxc8 {[%clk 0:00:44.1]} 27... Rxc8 {[%clk 0:00:30.2]}
28. Qxe6 {[%clk 0:00:26.7]} 28... fxe6 {[%clk 0:00:31.1]} 29. Rd7 {[%clk
0:00:26.9]} 29... bxa4 {[%clk 0:00:28.5]} 30. Ra7 {[%clk 0:00:23.9]} 30... h6
{[%clk 0:00:19]} 31. Rxa6 {[%clk 0:00:22.5]} 31... Rc3 {[%clk 0:00:17.7]} 32.
Ne5 {[%clk 0:00:20]} 32... a3 {[%clk 0:00:16.7]} 33. Nxg6 {[%clk 0:00:18.1]}
33... Nd3 {[%clk 0:00:10.3]} 34. Nxe7+ {[%clk 0:00:16.3]} 34... Kf7 {[%clk
0:00:10.3]} 35. Ra7 {[%clk 0:00:16.9]} 35... Nxf4 {[%clk 0:00:10.3]} 36. Nd5+
{[%clk 0:00:17.3]} 36... Kg6 {[%clk 0:00:10.6]} 37. Nxc3 {[%clk 0:00:17]} 37...
Nxh3+ {[%clk 0:00:10.4]} 38. Kg2 {[%clk 0:00:17.4]} 38... Bxc3 {[%clk
0:00:08.1]} 39. Kxh3 {[%clk 0:00:17.4]} 39... Bb2 {[%clk 0:00:08.6]} 40. Kg4
{[%clk 0:00:17.3]} 40... h5+ {[%clk 0:00:08.6]} 41. Kf3 {[%clk 0:00:17.7]} 41...
Kf5 {[%clk 0:00:08.9]} 42. Ra5+ {[%clk 0:00:18.2]} 42... e5 {[%clk 0:00:09.1]}
43. Ke3 {[%clk 0:00:17.8]} 43... Kg4 {[%clk 0:00:08.7]} 44. Ke4 {[%clk
0:00:17.1]} 44... Kh3 {[%clk 0:00:05.7]} 45. Ra8 {[%clk 0:00:16.9]} 45... Kg2
{[%clk 0:00:04.2]} 46. f4 {[%clk 0:00:14.8]} 46... exf4 {[%clk 0:00:04.6]} 47.
gxf4 {[%clk 0:00:15.4]} 47... h4 {[%clk 0:00:05.5]} 48. f5 {[%clk 0:00:15.8]}
48... h3 {[%clk 0:00:05.9]} 49. f6 {[%clk 0:00:16]} 49... h2 {[%clk 0:00:05.3]}
50. f7 {[%clk 0:00:15.2]} 50... h1=Q {[%clk 0:00:02.9]} 51. f8=Q {[%clk
0:00:15.1]} 51... Kg3+ {[%clk 0:00:03.3]} 52. Kf5 {[%clk 0:00:12.5]} 52... Qd5+
{[%clk 0:00:03.4]} 53. Kg6 {[%clk 0:00:11.7]} 53... Qe6+ {[%clk 0:00:03.2]} 54.
Kh7 {[%clk 0:00:10.5]} 54... Qe4+ {[%clk 0:00:03.4]} 55. Kh6 {[%clk 0:00:08.6]}
55... Qh4+ {[%clk 0:00:03.7]} 56. Kg6 {[%clk 0:00:08.2]} 56... Qg4+ {[%clk
0:00:04.3]} 57. Kf7 {[%clk 0:00:07.2]} 57... Qf5+ {[%clk 0:00:04]} 58. Ke7
{[%clk 0:00:07]} 58... Qe5+ {[%clk 0:00:03.5]} 59. Kd7 {[%clk 0:00:06.8]} 59...
Qd5+ {[%clk 0:00:03.9]} 60. Qd6+ {[%clk 0:00:07.1]} 60... Qxd6+ {[%clk
0:00:03.9]} 61. Kxd6 {[%clk 0:00:08]} 61... Kf4 {[%clk 0:00:04.8]} 62. Kc5
{[%clk 0:00:08.6]} 62... Ke3 {[%clk 0:00:05.7]} 63. Kb4 {[%clk 0:00:08.9]} 63...
Kd2 {[%clk 0:00:06.4]} 64. Rxa3 {[%clk 0:00:08.6]} 64... Bxa3+ {[%clk
0:00:06.3]} 1/2-1/2

[Event "*** SCC Grand Prix: Titled Tuesday Blitz"]
[Site "Chess.com"]
[Date "2020.09.29"]
[Round "5"]
[White "ferdipy"]
[Black "winniethepooh04"]
[Result "1/2-1/2"]
[WhiteElo "2365"]
[BlackElo "2207"]
[TimeControl "180+1"]
[EndTime "10:56:38 PDT"]
[Termination "Game drawn - insufficient material"]

1. e4 {[%clk 0:03:00.9]} 1... e6 {[%clk 0:02:59.3]} 2. d4 {[%clk 0:02:58.4]}
2... d5 {[%clk 0:02:59.8]} 3. Nc3 {[%clk 0:02:58.5]} 3... dxe4 {[%clk
0:02:59.4]} 4. Nxe4 {[%clk 0:02:57.5]} 4... Nd7 {[%clk 0:02:59.9]} 5. Nf3 {[%clk
0:02:55.8]} 5... Ngf6 {[%clk 0:03:00.5]} 6. Ng3 {[%clk 0:02:56.7]} 6... c5
{[%clk 0:02:59.5]} 7. c3 {[%clk 0:02:53.1]} 7... cxd4 {[%clk 0:02:59.4]} 8. Nxd4
{[%clk 0:02:53.2]} 8... a6 {[%clk 0:02:59.7]} 9. Bd3 {[%clk 0:02:52.8]} 9... Be7
{[%clk 0:03:00.3]} 10. O-O {[%clk 0:02:53]} 10... O-O {[%clk 0:03:00.8]} 11. Qe2
{[%clk 0:02:53]} 11... Re8 {[%clk 0:03:00.7]} 12. Bf4 {[%clk 0:02:51.9]} 12...
e5 {[%clk 0:02:53.7]} 13. Bxe5 {[%clk 0:02:50]} 13... Nxe5 {[%clk 0:02:33.2]}
14. Qxe5 {[%clk 0:02:50.9]} 14... Ba3 {[%clk 0:02:31.4]} 15. Qg5 {[%clk
0:02:38.1]} 15... h6 {[%clk 0:02:30.9]} 16. Qd2 {[%clk 0:02:36.9]} 16... Bc5
{[%clk 0:02:30.4]} 17. Bc2 {[%clk 0:02:35.7]} 17... Bxd4 {[%clk 0:02:20]} 18.
cxd4 {[%clk 0:02:36.6]} 18... Be6 {[%clk 0:02:19.6]} 19. Rfe1 {[%clk 0:02:32.3]}
19... Bd5 {[%clk 0:02:19.4]} 20. f3 {[%clk 0:02:31.3]} 20... Qb6 {[%clk
0:02:17.8]} 21. b3 {[%clk 0:02:25.3]} 21... Rad8 {[%clk 0:02:16.6]} 22. Kh1
{[%clk 0:02:18.5]} 22... Bc6 {[%clk 0:02:14.8]} 23. Rxe8+ {[%clk 0:02:17]} 23...
Nxe8 {[%clk 0:02:13.4]} 24. Rd1 {[%clk 0:02:17.5]} 24... Nf6 {[%clk 0:02:09.7]}
25. h3 {[%clk 0:02:16]} 25... Nd5 {[%clk 0:02:06.1]} 26. Ne4 {[%clk 0:02:15]}
26... Nb4 {[%clk 0:02:03]} 27. Bb1 {[%clk 0:02:14.7]} 27... Nd5 {[%clk
0:01:58.5]} 28. Qf2 {[%clk 0:02:11]} 28... Qb4 {[%clk 0:01:50.2]} 29. Qh4 {[%clk
0:02:04.5]} 29... Qe7 {[%clk 0:01:46.6]} 30. Qg3 {[%clk 0:02:02.7]} 30... Ne3
{[%clk 0:01:40.3]} 31. Re1 {[%clk 0:02:01.7]} 31... Nf5 {[%clk 0:01:40.2]} 32.
Qe5 {[%clk 0:02:00.3]} 32... Bxe4 {[%clk 0:01:30.1]} 33. Bxe4 {[%clk 0:01:50.2]}
33... Qxe5 {[%clk 0:01:14.9]} 34. dxe5 {[%clk 0:01:51.1]} 34... Ng3+ {[%clk
0:01:14.6]} 35. Kh2 {[%clk 0:01:50.8]} 35... Nxe4 {[%clk 0:01:14.2]} 36. Rxe4
{[%clk 0:01:51.7]} 36... Rd7 {[%clk 0:01:13.6]} 37. Re2 {[%clk 0:01:47.7]} 37...
Kf8 {[%clk 0:01:13]} 38. g4 {[%clk 0:01:47.2]} 38... g5 {[%clk 0:01:10.6]} 39.
Kg3 {[%clk 0:01:46.9]} 39... Ke7 {[%clk 0:01:10.6]} 40. h4 {[%clk 0:01:47.8]}
40... Ke6 {[%clk 0:01:09.7]} 41. hxg5 {[%clk 0:01:44.2]} 41... hxg5 {[%clk
0:01:09.5]} 42. Re4 {[%clk 0:01:32.2]} 42... Rd5 {[%clk 0:01:08.7]} 43. f4
{[%clk 0:01:29.2]} 43... Rd3+ {[%clk 0:01:07.1]} 44. Kf2 {[%clk 0:01:29.5]}
44... gxf4 {[%clk 0:01:04.8]} 45. Rxf4 {[%clk 0:01:28.5]} 45... Rd5 {[%clk
0:01:03.3]} 46. Ke3 {[%clk 0:01:24.4]} 46... Rxe5+ {[%clk 0:01:02.8]} 47. Kd4
{[%clk 0:01:24.7]} 47... Re2 {[%clk 0:01:00.5]} 48. a4 {[%clk 0:01:24.5]} 48...
Rb2 {[%clk 0:00:58.7]} 49. Kc4 {[%clk 0:01:21.4]} 49... Rb1 {[%clk 0:00:57.8]}
50. b4 {[%clk 0:01:21.5]} 50... Ra1 {[%clk 0:00:56.8]} 51. a5 {[%clk 0:01:18.1]}
51... Rc1+ {[%clk 0:00:56.6]} 52. Kd4 {[%clk 0:01:18.3]} 52... Ke7 {[%clk
0:00:55.1]} 53. Rf5 {[%clk 0:01:13.3]} 53... Rg1 {[%clk 0:00:50.9]} 54. Rf4
{[%clk 0:01:03.1]} 54... Kd6 {[%clk 0:00:48.6]} 55. Rxf7 {[%clk 0:00:52.3]}
55... Rxg4+ {[%clk 0:00:47.2]} 56. Kc3 {[%clk 0:00:53.2]} 56... Kc6 {[%clk
0:00:44.8]} 57. Rf6+ {[%clk 0:00:51.1]} 57... Kc7 {[%clk 0:00:43.9]} 58. Rf3
{[%clk 0:00:51.6]} 58... Kc6 {[%clk 0:00:43.1]} 59. Rd3 {[%clk 0:00:52.2]} 59...
Kc7 {[%clk 0:00:42.8]} 60. Kb3 {[%clk 0:00:50.4]} 60... Kb8 {[%clk 0:00:39.4]}
61. Kc3 {[%clk 0:00:49]} 61... Ka7 {[%clk 0:00:39.6]} 62. Rd4 {[%clk 0:00:49.1]}
62... Rg5 {[%clk 0:00:37.3]} 63. Kc4 {[%clk 0:00:49.1]} 63... Kb8 {[%clk
0:00:37.9]} 64. Rd7 {[%clk 0:00:47.9]} 64... Kc8 {[%clk 0:00:36.1]} 65. Rh7
{[%clk 0:00:47.8]} 65... Rf5 {[%clk 0:00:36.2]} 66. Rh4 {[%clk 0:00:46.5]} 66...
Rg5 {[%clk 0:00:35.8]} 67. Rd4 {[%clk 0:00:47]} 67... Kc7 {[%clk 0:00:35.4]} 68.
Rd5 {[%clk 0:00:45.9]} 68... Rg4+ {[%clk 0:00:34.1]} 69. Kc5 {[%clk 0:00:46]}
69... Rg6 {[%clk 0:00:34.1]} 70. Rh5 {[%clk 0:00:43.9]} 70... Rc6+ {[%clk
0:00:33.1]} 71. Kd5 {[%clk 0:00:44.1]} 71... Rg6 {[%clk 0:00:32.9]} 72. Rh7+
{[%clk 0:00:40]} 72... Kb8 {[%clk 0:00:33.2]} 73. Re7 {[%clk 0:00:38.7]} 73...
Ka7 {[%clk 0:00:32.8]} 74. Re5 {[%clk 0:00:35.8]} 74... Rf6 {[%clk 0:00:32.8]}
75. Kc5 {[%clk 0:00:35.5]} 75... Rh6 {[%clk 0:00:32.7]} 76. Rd5 {[%clk
0:00:33.1]} 76... Rc6+ {[%clk 0:00:32.5]} 77. Kd4 {[%clk 0:00:33.1]} 77... Rh6
{[%clk 0:00:33.1]} 78. Kc5 {[%clk 0:00:33.5]} 78... Rc6+ {[%clk 0:00:33.4]} 79.
Kd4 {[%clk 0:00:34.1]} 79... Rh6 {[%clk 0:00:33.9]} 80. Rg5 {[%clk 0:00:34.3]}
80... Rd6+ {[%clk 0:00:33.6]} 81. Rd5 {[%clk 0:00:34.4]} 81... Rxd5+ {[%clk
0:00:33.1]} 82. Kxd5 {[%clk 0:00:35.3]} 82... b6 {[%clk 0:00:33.6]} 83. Kc6
{[%clk 0:00:35.3]} 83... bxa5 {[%clk 0:00:32.5]} 84. bxa5 {[%clk 0:00:36.2]}
84... Kb8 {[%clk 0:00:32.6]} 85. Kb6 {[%clk 0:00:37.1]} 85... Ka8 {[%clk
0:00:32.7]} 86. Kxa6 {[%clk 0:00:38]} 86... Kb8 {[%clk 0:00:33.2]} 87. Kb6
{[%clk 0:00:38.9]} 87... Ka8 {[%clk 0:00:33.8]} 88. a6 {[%clk 0:00:39.8]} 88...
Kb8 {[%clk 0:00:34.1]} 89. a7+ {[%clk 0:00:39.9]} 89... Ka8 {[%clk 0:00:34.7]}
90. Kc7 {[%clk 0:00:39.5]} 90... Kxa7 {[%clk 0:00:35.6]} 1/2-1/2

[Event "*** SCC Grand Prix: Titled Tuesday Blitz"]
[Site "Chess.com"]
[Date "2020.09.29"]
[Round "5"]
[White "TimofeevAr"]
[Black "tsvet2005"]
[Result "0-1"]
[WhiteElo "2850"]
[BlackElo "2652"]
[TimeControl "180+1"]
[EndTime "10:56:51 PDT"]
[Termination "tsvet2005 won by resignation"]

1. e4 {[%clk 0:03:00.9]} 1... c5 {[%clk 0:02:59.3]} 2. Nc3 {[%clk 0:02:59.8]}
2... d6 {[%clk 0:02:59.5]} 3. Bc4 {[%clk 0:02:59.2]} 3... Nf6 {[%clk 0:02:58.6]}
4. d3 {[%clk 0:02:59.1]} 4... e6 {[%clk 0:02:57.1]} 5. Nf3 {[%clk 0:02:58.8]}
5... Be7 {[%clk 0:02:56.1]} 6. O-O {[%clk 0:02:58.4]} 6... O-O {[%clk
0:02:54.4]} 7. Re1 {[%clk 0:02:58.2]} 7... a6 {[%clk 0:02:54.3]} 8. a3 {[%clk
0:02:57.7]} 8... Nbd7 {[%clk 0:02:54.4]} 9. Bf4 {[%clk 0:02:54.5]} 9... b6
{[%clk 0:02:54.2]} 10. Ne2 {[%clk 0:02:50]} 10... Bb7 {[%clk 0:02:53.7]} 11. Ng3
{[%clk 0:02:50.1]} 11... Re8 {[%clk 0:02:47.4]} 12. Ba2 {[%clk 0:02:48.7]} 12...
Qc7 {[%clk 0:02:41.9]} 13. h3 {[%clk 0:02:48.2]} 13... Rad8 {[%clk 0:02:36.3]}
14. c3 {[%clk 0:02:47.8]} 14... Qb8 {[%clk 0:02:33.6]} 15. Qe2 {[%clk 0:02:44]}
15... Qa8 {[%clk 0:02:31.5]} 16. Rad1 {[%clk 0:02:43]} 16... b5 {[%clk
0:02:30.6]} 17. Ng5 {[%clk 0:02:36.3]} 17... h6 {[%clk 0:02:20.9]} 18. Nf3
{[%clk 0:02:33.6]} 18... Nb6 {[%clk 0:02:03.2]} 19. Qe3 {[%clk 0:02:23.9]} 19...
Bf8 {[%clk 0:02:02.8]} 20. Qc1 {[%clk 0:02:22.5]} 20... c4 {[%clk 0:02:01.1]}
21. Be3 {[%clk 0:02:22.1]} 21... Nbd7 {[%clk 0:01:56.5]} 22. dxc4 {[%clk
0:02:17.6]} 22... Nxe4 {[%clk 0:01:56.3]} 23. Nf1 {[%clk 0:02:12.6]} 23... bxc4
{[%clk 0:01:52.9]} 24. Bxc4 {[%clk 0:02:12.2]} 24... Nef6 {[%clk 0:01:50.6]} 25.
Be2 {[%clk 0:02:11.9]} 25... Ne5 {[%clk 0:01:49.2]} 26. N1h2 {[%clk 0:02:08.2]}
26... Nd5 {[%clk 0:01:47.8]} 27. Bd4 {[%clk 0:02:06.7]} 27... Nc6 {[%clk
0:01:42.6]} 28. c4 {[%clk 0:02:05]} 28... Nxd4 {[%clk 0:01:41.9]} 29. Nxd4
{[%clk 0:02:05.1]} 29... Nf6 {[%clk 0:01:40.2]} 30. Bf3 {[%clk 0:02:05.3]} 30...
d5 {[%clk 0:01:36.6]} 31. cxd5 {[%clk 0:01:57.3]} 31... Nxd5 {[%clk 0:01:32.5]}
32. Ng4 {[%clk 0:01:56.9]} 32... Rc8 {[%clk 0:01:29.5]} 33. Qd2 {[%clk 0:01:56]}
33... Red8 {[%clk 0:01:22.5]} 34. Qa5 {[%clk 0:01:51.5]} 34... Rc5 {[%clk
0:01:15.3]} 35. Qa4 {[%clk 0:01:46]} 35... Nb6 {[%clk 0:01:08.3]} 36. Qb3 {[%clk
0:01:45.1]} 36... Bxf3 {[%clk 0:01:05.4]} 37. Nxf3 {[%clk 0:01:44.8]} 37... Nd5
{[%clk 0:01:02.4]} 38. Nge5 {[%clk 0:01:41.3]} 38... Rb8 {[%clk 0:01:02.2]} 39.
Qa2 {[%clk 0:01:41.2]} 39... Rc2 {[%clk 0:01:02]} 40. Nd3 {[%clk 0:01:37.6]}
40... Qb7 {[%clk 0:00:58.2]} 41. Qb1 {[%clk 0:01:29]} 41... Rbc8 {[%clk
0:00:54.8]} 42. Nd4 {[%clk 0:01:26.8]} 42... R2c4 {[%clk 0:00:52.8]} 43. Ne5
{[%clk 0:01:26.5]} 43... R4c7 {[%clk 0:00:53.1]} 44. Qa2 {[%clk 0:01:16.6]}
44... Qa7 {[%clk 0:00:51.8]} 45. Qb3 {[%clk 0:01:13.6]} 45... Rb8 {[%clk
0:00:50.4]} 46. Qa2 {[%clk 0:01:10.5]} 46... Bc5 {[%clk 0:00:50.9]} 47. Nef3
{[%clk 0:01:09.1]} 47... Bf8 {[%clk 0:00:49.5]} 48. Nxe6 {[%clk 0:01:00.5]}
48... fxe6 {[%clk 0:00:49.1]} 49. Rxe6 {[%clk 0:01:00.6]} 49... Rc2 {[%clk
0:00:48.4]} 50. Nd4 {[%clk 0:00:45.7]} 50... Nc3 {[%clk 0:00:37.8]} 51. Qc4
{[%clk 0:00:40.2]} 51... Ne2+ {[%clk 0:00:36.9]} 52. Qxe2 {[%clk 0:00:37]} 52...
Rxe2 {[%clk 0:00:36.4]} 53. Rxe2 {[%clk 0:00:37.9]} 53... Bc5 {[%clk 0:00:36.9]}
54. Nf3 {[%clk 0:00:37.4]} 54... a5 {[%clk 0:00:34.5]} 55. Red2 {[%clk
0:00:36.4]} 55... a4 {[%clk 0:00:30.6]} 56. Ne5 {[%clk 0:00:36.5]} 56... Rf8
{[%clk 0:00:28.6]} 57. Nd3 {[%clk 0:00:33.2]} 57... Bd4 {[%clk 0:00:28.4]} 58.
Re2 {[%clk 0:00:32.7]} 58... Qb6 {[%clk 0:00:28]} 59. Rdd2 {[%clk 0:00:32.7]}
59... Rc8 {[%clk 0:00:27.5]} 60. g3 {[%clk 0:00:31.6]} 60... Qb8 {[%clk
0:00:23.6]} 61. Kg2 {[%clk 0:00:30.4]} 61... Qb7+ {[%clk 0:00:23.1]} 62. Kh2
{[%clk 0:00:30]} 62... Bb6 {[%clk 0:00:23.1]} 63. h4 {[%clk 0:00:26.3]} 63...
Rd8 {[%clk 0:00:23.5]} 64. Nf4 {[%clk 0:00:22.1]} 64... Rxd2 {[%clk 0:00:23]}
65. Rxd2 {[%clk 0:00:22.5]} 65... Qf3 {[%clk 0:00:23.5]} 66. Nh3 {[%clk
0:00:17.9]} 66... Ba5 {[%clk 0:00:21.8]} 67. Rc2 {[%clk 0:00:18.2]} 67... Qb3
{[%clk 0:00:21.5]} 68. Re2 {[%clk 0:00:18]} 68... Bb6 {[%clk 0:00:21.4]} 69. Nf4
{[%clk 0:00:17.8]} 69... Bd4 {[%clk 0:00:21.7]} 70. h5 {[%clk 0:00:16.6]} 70...
Bxb2 {[%clk 0:00:21]} 71. Ng6 {[%clk 0:00:16.7]} 71... Bxa3 {[%clk 0:00:18.4]}
72. Re8+ {[%clk 0:00:16.8]} 72... Kf7 {[%clk 0:00:18.7]} 73. Re3 {[%clk
0:00:17.3]} 73... Bd6 {[%clk 0:00:11.6]} 74. Nh8+ {[%clk 0:00:14.8]} 74... Kf6
{[%clk 0:00:05.8]} 75. Ng6 {[%clk 0:00:14.8]} 75... Qxe3 {[%clk 0:00:05.5]} 76.
fxe3 {[%clk 0:00:15.2]} 76... a3 {[%clk 0:00:06.4]} 0-1